fUST/lending_fUST_20241231
["ID","MTS","AMOUNT","RATE_DAILY","PERIOD"]
[347233779,1735605048742,-997.20367241,0.00020344,2]
[347233780,1735605048751,-340.3,0.000204,2]
[347233781,1735605048761,-174.922038,0.00020447,2]
[347233782,1735605048771,-500.0,0.00020498,3]
[347233783,1735605048780,-2457.04958791,0.00020499,3]
[347233784,1735605048788,-513.11,0.00020499,3]
[347233785,1735605048798,-151.0,0.000205,2]
[347233786,1735605048807,-151.0,0.000205,2]
[347233787,1735605048816,-157.564822,0.00020521,2]
[347233788,1735605048825,-500.0,0.00020524,3]
[347233789,1735605048834,-500.0,0.00020524,3]
[347233790,1735605048843,-500.0,0.00020524,3]
[347233791,1735605048852,-500.0,0.00020524,3]
[347233792,1735605048861,-500.0,0.00020524,3]
[347233793,1735605048872,-500.0,0.00020524,3]
[347233794,1735605048881,-500.0,0.00020524,3]
[347233795,1735605048890,-642.62,0.00020524,3]
[347233796,1735605048899,-500.0,0.00020524,3]
[347233797,1735605048908,-1276.01,0.00020524,3]
[347233798,1735605048918,-500.0,0.00020524,3]
[347233799,1735605048927,-500.0,0.00020524,3]
[347233800,1735605048936,-799.56,0.00020524,3]
[347233801,1735605048946,-500.0,0.00020524,3]
[347233802,1735605048955,-653.95,0.00020524,3]
[347233803,1735605048964,-767.47,0.00020524,3]
[347233804,1735605048974,-500.0,0.00020524,3]
[347233805,1735605048983,-500.0,0.00020524,3]
[347233806,1735605048993,-500.0,0.00020524,3]
[347233807,1735605049002,-500.0,0.00020524,3]
[347233808,1735605049011,-531.94,0.00020524,3]
[347233809,1735605049021,-500.0,0.00020524,3]
[347233810,1735605049030,-2176.34,0.00020524,3]
[347233811,1735605049040,-500.0,0.00020524,3]
[347233812,1735605049049,-500.0,0.00020524,3]
[347233813,1735605049058,-571.37,0.00020524,3]
[347233814,1735605049068,-500.0,0.00020524,3]
[347233815,1735605049077,-500.0,0.00020524,3]
[347233816,1735605049087,-10678.13,0.00020524,3]
[347233817,1735605049096,-927.07,0.00020524,3]
[347233818,1735605049106,-1137.39,0.00020524,3]
[347233819,1735605049116,-646.44,0.00020524,3]
[347233820,1735605049125,-619.1,0.00020524,3]
[347233821,1735605049136,-403.36942045,0.00020524,3]
[347233822,1735605049146,-500.0,0.00020524,3]
[347233823,1735605049157,-685.88,0.00020524,3]
[347233824,1735605049167,-500.0,0.00020524,3]
[347233825,1735605049176,-500.0,0.00020524,3]
[347233826,1735605049186,-16409.05,0.00020524,3]
[347233827,1735605049195,-858.78,0.00020524,3]
[347233828,1735605049204,-500.0,0.00020525,3]
[347233829,1735605049214,-200.0,0.00020525,3]
[347233830,1735605049224,-500.0,0.00020525,3]
[347233831,1735605049233,-500.0,0.00020525,3]
[347233832,1735605049242,-500.0,0.00020525,3]
[347233833,1735605049252,-500.0,0.00020525,3]
[347233834,1735605049261,-500.0,0.00020525,3]
[347233835,1735605049271,-692.14,0.00020525,3]
[347233836,1735605049280,-500.0,0.00020525,3]
[347233837,1735605049289,-671.97,0.00020525,3]
[347233838,1735605049299,-500.0,0.00020525,3]
[347233839,1735605049308,-500.0,0.00020525,3]
[347233840,1735605049317,-500.0,0.00020525,3]
[347233841,1735605049326,-642.14,0.00020525,3]
[347233842,1735605049410,-500.0,0.00020525,3]
[347233843,1735605049421,-500.0,0.00020525,3]
[347233844,1735605049431,-500.0,0.00020525,3]
[347233845,1735605049441,-500.0,0.00020525,3]
[347233846,1735605049450,-500.0,0.00020525,3]
[347233847,1735605049460,-771.2,0.00020525,3]
[347233848,1735605049470,-500.0,0.00020525,3]
[347233849,1735605049479,-500.0,0.00020525,3]
[347233850,1735605049488,-500.0,0.00020525,3]
[347233851,1735605049498,-500.0,0.00020525,3]
[347233852,1735605049507,-500.0,0.00020525,3]
[347233853,1735605049516,-1615.84,0.00020525,3]
[347233854,1735605049526,-500.0,0.00020525,3]
[347233855,1735605049535,-500.0,0.00020525,3]
[347233856,1735605049545,-500.0,0.00020525,3]
[347233857,1735605049554,-500.0,0.00020525,3]
[347233858,1735605049567,-500.0,0.00020525,3]
[347233859,1735605049576,-500.0,0.00020525,3]
[347233860,1735605049586,-745.57,0.00020525,3]
[347233861,1735605049595,-513.11,0.00020525,3]
[347233862,1735605049606,-513.11,0.00020525,3]
[347233863,1735605049615,-500.0,0.00020525,3]
[347233864,1735605049626,-500.0,0.00020525,3]
[347233865,1735605049636,-500.0,0.00020526,3]
[347233866,1735605049645,-500.0,0.00020526,3]
[347233867,1735605049656,-500.0,0.00020526,3]
[347233868,1735605049665,-500.0,0.00020526,3]
[347233869,1735605049674,-500.0,0.00020526,3]
[347233870,1735605049684,-500.0,0.00020526,3]
[347233871,1735605049694,-500.0,0.00020526,3]
[347233872,1735605049703,-500.0,0.00020526,3]
[347233873,1735605049712,-500.0,0.00020526,3]
[347233874,1735605049721,-500.0,0.00020526,3]
[347233875,1735605049730,-612.0,0.00020526,3]
[347233876,1735605049739,-560.6644373,0.00020526,3]
[347233877,1735605049749,-500.0,0.00020526,3]
[347233878,1735605049758,-500.0,0.00020526,3]
[347233879,1735605049767,-500.0,0.00020526,3]
[347233880,1735605049775,-500.0,0.00020526,3]
[347233881,1735605049785,-500.0,0.00020526,3]
[347233882,1735605049794,-775.987108,0.00020526,2]
[347233883,1735605049804,-775.987108,0.00020526,2]
[347233884,1735605049813,-500.0,0.00020526,3]
[347233885,1735605049823,-500.0,0.00020526,3]
[347233886,1735605049832,-500.0,0.00020526,3]
[347233887,1735605049841,-500.0,0.00020526,3]
[347233888,1735605049850,-513.11,0.00020526,3]
[347233889,1735605049859,-248.512638,0.00020526,2]
[347233890,1735605049869,-248.512638,0.00020526,2]
[347233891,1735605049878,-151.0,0.00020527,2]
[347233892,1735605049887,-151.0,0.00020527,2]
[347233893,1735605049896,-151.0,0.00020527,2]
[347233894,1735605049906,-151.0,0.00020527,2]
[347233895,1735605049916,-500.0,0.00020527,3]
[347233896,1735605049925,-3674.29,0.00020528,3]
[347233897,1735605049934,-500.0,0.00020528,3]
[347233898,1735605049944,-151.0,0.00020529,2]
[347233899,1735605049953,-151.0,0.00020529,2]
[347233900,1735605049962,-151.0,0.00020529,2]
[347233901,1735605049972,-151.0,0.00020529,2]
[347233902,1735605049981,-151.0,0.00020529,2]
[347233903,1735605049990,-151.0,0.00020529,2]
[347233904,1735605049999,-2687.56,0.00020529,3]
[347233905,1735605050008,-1356.131793,0.00020529,2]
[347233906,1735605050018,-1356.131793,0.00020529,2]
[347233907,1735605050027,-307.276139,0.00020529,2]
[347233908,1735605050036,-307.276139,0.00020529,2]
[347233909,1735605050046,-151.0,0.00020529,2]
[347233910,1735605050055,-151.0,0.00020529,2]
[347233911,1735605050064,-997.20367241,0.00020538,2]
[347233912,1735605050073,-500.0,0.00020564,3]
[347233913,1735605050082,-151.0,0.0002065,2]
[347233914,1735605050092,-238.414925,0.0002065,2]
[347233915,1735605050101,-238.414925,0.0002065,2]
[347233916,1735605050110,-151.0,0.0002065,2]
[347233917,1735605050121,-151.0,0.0002065,2]
[347233918,1735605050130,-394.0,0.0002065,2]
[347233919,1735605050139,-500.0,0.00020662,4]
[347233920,1735605050149,-997.20367241,0.00020731,2]
[347233921,1735605050159,-1200.0,0.0002074,2]
[347233922,1735605050168,-500.0,0.00020798,3]
[347233923,1735605050177,-500.0,0.00020798,3]
[347233924,1735605050186,-500.0,0.00020798,3]
[347233925,1735605050196,-500.0,0.00020798,3]
[347233926,1735605050205,-500.0,0.00020798,3]
[347233927,1735605050214,-500.0,0.00020798,3]
[347233928,1735605050224,-500.0,0.00020798,3]
[347233929,1735605050233,-642.62,0.00020798,3]
[347233930,1735605050243,-623.04,0.00020798,3]
[347233931,1735605050252,-1276.01,0.00020798,3]
[347233932,1735605050261,-500.0,0.00020798,3]
[347233933,1735605050270,-376.02979642,0.00020798,3]
[347233934,1735605050280,-799.56,0.00020798,3]
[347233935,1735605050289,-560.84,0.00020798,3]
[347233936,1735605050298,-653.95,0.00020798,3]
[347233937,1735605050307,-767.47,0.00020798,3]
[347233938,1735605050316,-500.0,0.00020798,3]
[347233939,1735605050326,-500.0,0.00020798,3]
[347233940,1735605050336,-500.0,0.00020798,3]
[347233941,1735605050346,-500.0,0.00020798,3]
[347233942,1735605050355,-531.94,0.00020798,3]
[347233943,1735605050365,-500.0,0.00020798,3]
[347233944,1735605050374,-2176.34,0.00020798,3]
[347233945,1735605050383,-522.47238864,0.00020798,3]
[347233946,1735605050393,-500.0,0.00020798,3]
[347233947,1735605050402,-571.37,0.00020798,3]
[347233948,1735605050411,-500.0,0.00020798,3]
[347233949,1735605050421,-338.71439952,0.00020798,3]
[347233950,1735605050431,-10678.13,0.00020798,3]
[347233951,1735605050440,-927.07,0.00020798,3]
[347233952,1735605050450,-513.11,0.00020798,3]
[347233953,1735605050459,-1137.39,0.00020798,3]
[347233954,1735605050468,-646.44,0.00020798,3]
[347233955,1735605050478,-619.1,0.00020798,3]
[347233956,1735605050487,-500.0,0.00020798,3]
[347233957,1735605050496,-685.88,0.00020798,3]
[347233958,1735605050505,-500.0,0.00020798,3]
[347233959,1735605050514,-16409.05,0.00020798,3]
[347233960,1735605050524,-858.78,0.00020798,3]
[347233961,1735605050534,-200.0,0.00020799,3]
[347233962,1735605050543,-500.0,0.00020799,3]
[347233963,1735605050552,-500.0,0.00020799,3]
[347233964,1735605050563,-500.0,0.00020799,3]
[347233965,1735605050573,-500.0,0.00020799,3]
[347233966,1735605050582,-242.308778,0.00020799,2]
[347233967,1735605050591,-242.308778,0.00020799,2]
[347233968,1735605050600,-533.85,0.00020799,3]
[347233969,1735605050610,-692.14,0.00020799,3]
[347233970,1735605050619,-3158.388509,0.00020799,2]
[347233971,1735605050629,-3158.388509,0.00020799,2]
[347233972,1735605050640,-235.929866,0.00020799,2]
[347233973,1735605050650,-235.929866,0.00020799,2]
[347233974,1735605050659,-1418.662685,0.00020799,2]
[347233975,1735605050669,-500.0,0.00020799,3]
[347233976,1735605050678,-1418.662685,0.00020799,2]
[347233977,1735605050687,-671.97,0.00020799,3]
[347233978,1735605050696,-500.0,0.00020799,3]
[347233979,1735605050705,-500.0,0.00020799,3]
[347233980,1735605050714,-500.0,0.00020799,3]
[347233981,1735605050723,-282.656744,0.00020799,2]
[347233982,1735605050732,-282.656744,0.00020799,2]
[347233983,1735605050742,-500.0,0.00020799,3]
[347233984,1735605050751,-500.0,0.00020799,3]
[347233985,1735605050760,-500.0,0.00020799,3]
[347233986,1735605050769,-579.90040571,0.00020799,3]
[347233987,1735605050778,-771.2,0.00020799,3]
[347233988,1735605050787,-1271.696382,0.00020799,2]
[347233989,1735605050795,-300.322068,0.00020799,2]
[347233990,1735605050804,-1271.696382,0.00020799,2]
[347233991,1735605050813,-300.322068,0.00020799,2]
[347233992,1735605050822,-500.0,0.00020799,3]
[347233993,1735605050831,-713.846984,0.00020799,2]
[347233994,1735605050841,-713.846984,0.00020799,2]
[347233995,1735605050850,-500.0,0.00020799,3]
[347233996,1735605050859,-500.0,0.00020799,3]
[347233997,1735605050868,-245.81285655,0.00020799,3]
[347233998,1735605050877,-1615.84,0.00020799,3]
[347233999,1735605050887,-681.85602,0.00020799,2]
[347234000,1735605050896,-681.85602,0.00020799,2]
[347234001,1735605050906,-500.0,0.00020799,3]
[347234002,1735605050916,-411.54,0.00020799,3]
[347234003,1735605050925,-500.0,0.00020799,3]
[347234004,1735605050934,-500.0,0.00020799,3]
[347234005,1735605050943,-500.0,0.00020799,3]
[347234006,1735605050952,-500.0,0.00020799,3]
[347234007,1735605050961,-745.57,0.00020799,3]
[347234008,1735605050970,-513.11,0.00020799,3]
[347234009,1735605050979,-513.11,0.00020799,3]
[347234010,1735605050988,-500.0,0.00020799,3]
[347234011,1735605050997,-500.0,0.00020799,3]
[347234012,1735605051007,-500.0,0.000208,3]
[347234013,1735605051016,-151.0,0.000208,3]
[347234014,1735605051025,-151.0,0.000208,2]
[347234015,1735605051034,-500.0,0.000208,3]
[347234016,1735605051043,-500.0,0.000208,3]
[347234017,1735605051052,-500.0,0.000208,3]
[347234018,1735605051061,-500.0,0.000208,3]
[347234019,1735605051070,-500.0,0.000208,3]
[347234020,1735605051079,-151.0,0.000208,2]
[347234021,1735605051089,-151.0,0.000208,2]
[347234022,1735605051098,-151.0,0.000208,2]
[347234023,1735605051107,-151.0,0.000208,2]
[347234024,1735605051117,-325.405084,0.000208,2]
[347234025,1735605051125,-325.405084,0.000208,2]
[347234026,1735605051134,-500.0,0.000208,3]
[347234027,1735605051144,-500.0,0.000208,3]
[347234028,1735605051154,-314.44305678,0.000208,3]
[347234029,1735605051163,-500.0,0.000208,3]
[347234030,1735605051172,-775.987108,0.000208,2]
[347234031,1735605051181,-775.987108,0.000208,2]
[347234032,1735605051191,-500.0,0.000208,3]
[347234033,1735605051200,-500.0,0.000208,3]
[347234034,1735605051209,-500.0,0.000208,3]
[347234035,1735605051218,-1356.131793,0.000208,2]
[347234036,1735605051227,-1356.131793,0.000208,2]
[347234037,1735605051237,-307.276139,0.000208,2]
[347234038,1735605051317,-307.276139,0.000208,2]
[347234039,1735605051327,-513.11,0.000208,3]
[347234040,1735605051337,-151.0,0.000208,2]
[347234041,1735605051346,-151.0,0.000208,2]
[347234042,1735605051356,-248.512638,0.000208,2]
[347234043,1735605051365,-248.512638,0.000208,2]
[347234044,1735605051375,-151.0,0.00020801,2]
[347234045,1735605051385,-151.0,0.00020801,2]
[347234046,1735605051394,-151.0,0.00020801,2]
[347234047,1735605051405,-151.0,0.00020801,2]
[347234048,1735605051414,-151.0,0.00020801,2]
[347234049,1735605051424,-151.0,0.00020801,2]
[347234050,1735605051433,-3674.29,0.00020802,3]
[347234051,1735605051443,-500.0,0.00020802,3]
[347234052,1735605051453,-248.4685598,0.00020803,2]
[347234053,1735605051462,-151.0,0.00020803,2]
[347234054,1735605051470,-151.0,0.00020803,2]
[347234055,1735605051480,-2687.56,0.00020803,3]
[347234056,1735605051489,-151.0,0.00020806,2]
[347234057,1735605051498,-151.0,0.00020806,2]
[347234058,1735605051507,-242.308778,0.00020806,2]
[347234059,1735605051516,-242.308778,0.00020806,2]
[347234060,1735605051525,-151.0,0.00020806,2]
[347234061,1735605051534,-238.414925,0.00020806,2]
[347234062,1735605051543,-238.414925,0.00020806,2]
[347234063,1735605051552,-300.322068,0.00020806,2]
[347234064,1735605051562,-300.322068,0.00020806,2]
[347234065,1735605051571,-151.0,0.00020806,2]
[347234066,1735605051579,-151.0,0.00020806,2]
[347234067,1735605051588,-256.0,0.0002084,3]
[347234068,1735605051598,-2000.0,0.000209,2]
[347234069,1735605051607,-151.0,0.000209,4]
[347234070,1735605051616,-151.0,0.000209,4]
[347234071,1735605051625,-1418.662685,0.000209,2]
[347234072,1735605051634,-1418.662685,0.000209,2]
[347234073,1735605051646,-282.656744,0.000209,2]
[347234074,1735605051656,-282.656744,0.000209,2]
[347234075,1735605051665,-151.0,0.000209,3]
[347234076,1735605051674,-157.564822,0.00020904,2]
[347234077,1735605051683,-165.1157644,0.00020925,2]
[347234078,1735605051692,-997.20367241,0.00020925,2]
[347234079,1735605051701,-3000.0,0.00021,2]
[347234080,1735605051710,-513.11,0.00021009,3]
[347234081,1735605051719,-3000.0,0.0002101,2]
[347234082,1735605051729,-151.0,0.0002101,2]
[347234083,1735605051738,-151.0,0.00021012,2]
[347234084,1735605051747,-241.6634306,0.00021013,2]
[347234085,1735605051756,-351.8225599,0.00021014,2]
[347234086,1735605051766,-306.8828424,0.00021014,2]
[347234087,1735605051775,-214.2328397,0.00021014,2]
[347234088,1735605051784,-500.0,0.00021014,2]
[347234089,1735605051794,-235.929866,0.00021014,2]
[347234090,1735605051803,-235.929866,0.00021014,2]
[347234091,1735605051813,-1271.696382,0.00021014,2]
[347234092,1735605051822,-1271.696382,0.00021014,2]
[347234093,1735605051831,-713.846984,0.00021014,2]
[347234094,1735605051840,-713.846984,0.00021014,2]
[347234095,1735605051850,-681.85602,0.00021014,2]
[347234096,1735605051859,-681.85602,0.00021014,2]
[347234097,1735605051868,-150.21,0.00021014,10]
[347234098,1735605051877,-599.0283899,0.00021014,2]
[347234099,1735605051886,-500.0,0.00021017,2]
[347234100,1735605051895,-500.0,0.00021017,2]
[347234101,1735605051905,-160.50202952,0.00021017,2]
[347234102,1735605051915,-513.11,0.00021017,3]
[347234103,1735605051924,-513.11,0.00021017,3]
[347234104,1735605051933,-513.11,0.00021017,3]
[347234105,1735605051943,-513.11,0.00021017,3]
[347234106,1735605051952,-513.11,0.00021017,3]
[347234107,1735605051961,-513.11,0.00021017,3]
[347234108,1735605051971,-513.29492011,0.00021017,3]
[347234109,1735605051980,-274.30775557,0.00021018,2]
[347234110,1735605051989,-2958.00622347,0.00021018,2]
[347234111,1735605051998,-231.479558,0.00021018,2]
[347234112,1735605052007,-151.0,0.00021018,2]
[347234113,1735605052016,-151.0,0.00021018,2]
[347234114,1735605052025,-176.959492,0.00021018,2]
[347234115,1735605052035,-151.0,0.00021018,2]
[347234116,1735605052044,-151.0,0.00021018,2]
[347234117,1735605052053,-151.0,0.00021018,2]
[347234118,1735605052062,-151.0,0.00021018,2]
[347234119,1735605052071,-151.0,0.00021018,2]
[347234120,1735605052080,-151.0,0.00021018,2]
[347234121,1735605052090,-151.0,0.00021018,2]
[347234122,1735605052099,-151.0,0.00021018,2]
[347234123,1735605052109,-151.0,0.00021018,2]
[347234124,1735605052118,-151.0,0.00021018,2]
[347234125,1735605052127,-151.0,0.00021018,2]
[347234126,1735605052135,-151.0,0.00021018,2]
[347234127,1735605052145,-216.951266,0.00021018,2]
[347234128,1735605052154,-151.0,0.00021018,2]
[347234129,1735605052164,-151.0,0.00021018,2]
[347234130,1735605052175,-275.3999,0.00021018,2]
[347234131,1735605052184,-151.0,0.00021018,2]
[347234132,1735605052193,-151.0,0.00021018,2]
[347234133,1735605052202,-151.0,0.00021018,2]
[347234134,1735605052211,-151.0,0.00021018,2]
[347234135,1735605052221,-151.0,0.00021018,2]
[347234136,1735605052230,-151.0,0.00021018,2]
[347234137,1735605052239,-151.0,0.00021018,2]
[347234138,1735605052248,-151.0,0.00021018,2]
[347234139,1735605052257,-151.0,0.00021018,2]
[347234140,1735605052266,-195.444076,0.00021018,2]
[347234141,1735605052275,-151.0,0.00021018,2]
[347234142,1735605052284,-151.0,0.00021018,2]
[347234143,1735605052293,-151.0,0.00021018,2]
[347234144,1735605052302,-151.0,0.00021018,2]
[347234145,1735605052312,-151.0,0.00021018,2]
[347234146,1735605052321,-151.0,0.00021018,2]
[347234147,1735605052330,-151.0,0.00021018,2]
[347234148,1735605052339,-151.0,0.00021018,2]
[347234149,1735605052348,-157.081093,0.00021018,2]
[347234150,1735605052358,-151.0,0.00021018,2]
[347234151,1735605052367,-151.0,0.00021018,2]
[347234152,1735605052376,-151.0,0.00021018,2]
[347234153,1735605052385,-151.187512,0.00021018,2]
[347234154,1735605052395,-151.187512,0.00021018,2]
[347234155,1735605052404,-151.187512,0.00021018,2]
[347234156,1735605052413,-151.187512,0.00021018,2]
[347234157,1735605052422,-151.187512,0.00021018,2]
[347234158,1735605052432,-151.187512,0.00021018,2]
[347234159,1735605052441,-151.187512,0.00021018,2]
[347234160,1735605052450,-151.187512,0.00021018,2]
[347234161,1735605052459,-151.187512,0.00021018,2]
[347234162,1735605052468,-151.187512,0.00021018,2]
[347234163,1735605052477,-151.187512,0.00021018,2]
[347234164,1735605052486,-151.187512,0.00021018,2]
[347234165,1735605052495,-151.187512,0.00021018,2]
[347234166,1735605052504,-151.187512,0.00021018,2]
[347234167,1735605052514,-151.187512,0.00021018,2]
[347234168,1735605052523,-151.187512,0.00021018,2]
[347234169,1735605052533,-151.187512,0.00021018,2]
[347234170,1735605052542,-151.187512,0.00021018,2]
[347234171,1735605052551,-151.187512,0.00021018,2]
[347234172,1735605052566,-151.187514,0.00021018,2]
[347234173,1735605052575,-539.244787,0.00021018,2]
[347234174,1735605052585,-539.244787,0.00021018,2]
[347234175,1735605052594,-539.244787,0.00021018,2]
[347234176,1735605052605,-539.244787,0.00021018,2]
[347234177,1735605052617,-539.244787,0.00021018,2]
[347234178,1735605052626,-539.244787,0.00021018,2]
[347234179,1735605052637,-539.244787,0.00021018,2]
[347234180,1735605052647,-539.244787,0.00021018,2]
[347234181,1735605052657,-539.244787,0.00021018,2]
[347234182,1735605052666,-539.244787,0.00021018,2]
[347234183,1735605052675,-539.244787,0.00021018,2]
[347234184,1735605052685,-539.244787,0.00021018,2]
[347234185,1735605052694,-539.244787,0.00021018,2]
[347234186,1735605052703,-539.244787,0.00021018,2]
[347234187,1735605052713,-539.244787,0.00021018,2]
[347234188,1735605052722,-539.244787,0.00021018,2]
[347234189,1735605052731,-539.244787,0.00021018,2]
[347234190,1735605052741,-539.244787,0.00021018,2]
[347234191,1735605052750,-539.244787,0.00021018,2]
[347234192,1735605052759,-539.244789,0.00021018,2]
[347234193,1735605052769,-1260.344877,0.00021018,2]
[347234194,1735605052778,-1260.344877,0.00021018,2]
[347234195,1735605052788,-1260.344877,0.00021018,2]
[347234196,1735605052797,-1260.344877,0.00021018,2]
[347234197,1735605052806,-1260.344877,0.00021018,2]
[347234198,1735605052815,-1260.344877,0.00021018,2]
[347234199,1735605052824,-1260.344877,0.00021018,2]
[347234200,1735605052834,-1260.344877,0.00021018,2]
[347234201,1735605052843,-1260.344877,0.00021018,2]
[347234202,1735605052852,-1260.344877,0.00021018,2]
[347234203,1735605052861,-1260.344877,0.00021018,2]
[347234204,1735605052870,-1260.344877,0.00021018,2]
[347234205,1735605052879,-1260.344877,0.00021018,2]
[347234206,1735605052889,-1260.344877,0.00021018,2]
[347234207,1735605052898,-1260.344877,0.00021018,2]
[347234208,1735605052910,-1260.344877,0.00021018,2]
[347234209,1735605052919,-1260.344877,0.00021018,2]
[347234210,1735605052928,-1260.344877,0.00021018,2]
[347234211,1735605052937,-1260.344877,0.00021018,2]
[347234212,1735605052948,-1260.344884,0.00021018,2]
[347234213,1735605052957,-151.0,0.00021018,2]
[347234214,1735605052966,-151.0,0.00021018,2]
[347234215,1735605052976,-151.0,0.00021018,2]
[347234216,1735605052985,-151.0,0.00021018,2]
[347234217,1735605053060,-151.0,0.00021018,2]
[347234218,1735605053070,-151.0,0.00021018,2]
[347234219,1735605053079,-151.0,0.00021018,2]
[347234220,1735605053089,-151.0,0.00021018,2]
[347234221,1735605053098,-151.0,0.00021018,2]
[347234222,1735605053108,-151.0,0.00021018,2]
[347234223,1735605053117,-151.0,0.00021018,2]
[347234224,1735605053126,-151.0,0.00021018,2]
[347234225,1735605053136,-300.932497,0.00021018,2]
[347234226,1735605053146,-2646.817332,0.00021018,2]
[347234227,1735605053157,-2646.817332,0.00021018,2]
[347234228,1735605053166,-2646.817332,0.00021018,2]
[347234229,1735605053176,-2646.817332,0.00021018,2]
[347234230,1735605053185,-2646.817332,0.00021018,2]
[347234231,1735605053194,-2646.817332,0.00021018,2]
[347234232,1735605053204,-2646.817332,0.00021018,2]
[347234233,1735605053214,-2646.817332,0.00021018,2]
[347234234,1735605053223,-2646.817332,0.00021018,2]
[347234235,1735605053233,-2646.817332,0.00021018,2]
[347234236,1735605053242,-2646.817332,0.00021018,2]
[347234237,1735605053251,-2646.817332,0.00021018,2]
[347234238,1735605053260,-2646.817332,0.00021018,2]
[347234239,1735605053269,-2646.817332,0.00021018,2]
[347234240,1735605053279,-2646.817332,0.00021018,2]
[347234241,1735605053288,-2646.817332,0.00021018,2]
[347234242,1735605053298,-2646.817332,0.00021018,2]
[347234243,1735605053307,-2646.817332,0.00021018,2]
[347234244,1735605053316,-2646.817332,0.00021018,2]
[347234245,1735605053326,-2646.817336,0.00021018,2]
[347234246,1735605053335,-547.276778,0.00021018,2]
[347234247,1735605053344,-547.276778,0.00021018,2]
[347234248,1735605053354,-547.276778,0.00021018,2]
[347234249,1735605053364,-547.276778,0.00021018,2]
[347234250,1735605053373,-547.276778,0.00021018,2]
[347234251,1735605053383,-547.276778,0.00021018,2]
[347234252,1735605053393,-547.276778,0.00021018,2]
[347234253,1735605053402,-547.276778,0.00021018,2]
[347234254,1735605053412,-547.276778,0.00021018,2]
[347234255,1735605053422,-547.276778,0.00021018,2]
[347234256,1735605053431,-547.276778,0.00021018,2]
[347234257,1735605053441,-547.276778,0.00021018,2]
[347234258,1735605053449,-547.276778,0.00021018,2]
[347234259,1735605053459,-547.276778,0.00021018,2]
[347234260,1735605053467,-547.276778,0.00021018,2]
[347234261,1735605053477,-547.276778,0.00021018,2]
[347234262,1735605053486,-547.276778,0.00021018,2]
[347234263,1735605053496,-547.276778,0.00021018,2]
[347234264,1735605053505,-547.276778,0.00021018,2]
[347234265,1735605053514,-547.276771,0.00021018,2]
[347234266,1735605053523,-479.828168,0.00021018,2]
[347234267,1735605053532,-479.828168,0.00021018,2]
[347234268,1735605053542,-479.828168,0.00021018,2]
[347234269,1735605053551,-479.828168,0.00021018,2]
[347234270,1735605053560,-479.828168,0.00021018,2]
[347234271,1735605053570,-479.828168,0.00021018,2]
[347234272,1735605053586,-479.828168,0.00021018,2]
[347234273,1735605053595,-479.828168,0.00021018,2]
[347234274,1735605053605,-479.828168,0.00021018,2]
[347234275,1735605053614,-479.828168,0.00021018,2]
[347234276,1735605053625,-479.828168,0.00021018,2]
[347234277,1735605053634,-479.828168,0.00021018,2]
[347234278,1735605053643,-479.828168,0.00021018,2]